Workbook

Sheet SellorKeep
A1: Lease Grazing or Buy Cattle Analysis
A2: 2003-10-13
A3: Decision Description | B3: Lease grazing or buy cattle and graze wheat
B4: Date of Analysis | E4: =TODAY() -> 2012-05-11
A5: Lease Grazing Description | C5: Contract Weaner Steer
A6: Acres of Wheat Grazed | B6: Acres | E6: 200
A7: No. of Cattle Grazed | B7: Head | E7: 100
A8: Date Started | E8: 2012-11-15
A9: Date Grazing Finished | E9: 2013-05-01
A10: Days Grazed | B10: Days | E10: =E9-E8 -> 167
A11: Weight In | B11: Lb. | E11: 450
C12: Acres/Hd | D12: Lb./Acre In
A13: Stocking Rate | C13: =E6/E7 -> 2 | D13: =(E11/C13) -> 225
A14: Average Daily Gain | E14: 1.75
A15: Shrink If in Contract | B15: % | E15: 0
A16: Net Weight | B16: Lb. | E16: =((1-E15*0.01)*E11+(E10*E14)) -> 742.25
A17: Net Gain | B17: Lb./Hd. or Ac. | E17: =E16-E11 -> 292.25 | F17: =(E17/C13) -> 146.125 | G17: Lb./Acre
A18: Gross Lease Rate | B18: $/Lb. or $/Cwt. In | E18: 0.48 | F18: =((F19/(D13*0.01))/(E10)*(365/12)) -> 5.677777778 | G18: $/Cwt./Mo.
A19: Gross Lease Revenue - Opp. Cost | B19: $/Hd./ or $/Ac. | C19: =(E19*E7) -> 14028 | E19: =E18*E17 -> 140.28 | F19: =E19/C13 -> 70.14 | G19: $/Acre
A20: Cattle Production Cost - Paid By Leasor | B20: $/Hd./ or $/Ac. | E20: 10 | F20: =E20/C13 -> 5 | G20: $/Acre
A21: Net Revenue Per Head and Acre | B21: $/Hd./ or $/Ac. | E21: =E19-E20 -> 130.28 | F21: =(E21/C13) -> 65.14 | G21: $/Acre
A22: Total Projected Grazing Net Income | B22: $ | E22: =E21*E7 -> 13028 | F22: =E22/(E7*E17) -> 0.4457827203 | G22: $/Lb.
A23: -
A24: Description of Retained Ownership Alternative | D24: Buy stockers & Graze
A25: Date Started | E25: =E8 -> 2012-11-15
A26: Date Grazing Finished | E26: =E9 -> 2013-05-01
A27: Days Cattle Grazed | B27: Days | E27: =E10 -> 167
A28: Number of Cattle Grazed | B28: Head | E28: =E7 -> 100
A29: Weight In | B29: Lb./Head | E29: 450
A30: Cost of Cattle In - See Margin & Slide | B30: $/Cwt. | E30: ='Margin and Slide'!C36 -> 138
A31: Average Daily Gain | B31: Lb./Day | E31: 1.75 | F31: Gross Gain & ADG
A32: Weight Before Shrink | B32: Lb./Head | E32: =E31*E27+E29 -> 742.25 | F32: =((E39*E32)-(E29*E28)) -> 28482.75 | G32: =IF(F32<=0,"Undefined",(F32/(E27*E39))) -> 1.722781709
A33: Shrink When Sold | B33: % | E33: 3 | F33: Gain / Hd. | G33: =(F32/E39) -> 287.7045455
A34: Net Payweight | B34: Lb./Head | E34: =((1-E33*0.01)*E32) -> 719.9825
A35: Net Payweight Gain and Average Daily Gain | B35: Lb./Head & Day | E35: =E34-E29 -> 269.9825
A36: Gross Pay Weight Price - See Margin & Slide | B36: $/Cwt. | E36: ='Margin and Slide'!D36 -> 125.800175
A37: Marketing Costs - Commissions | B37: % - $/Head | D37: 3 | E37: =((E34*E30*0.01)*D37*0.01) -> 29.8072755 | F37: Net Gain (Deads In)
A38: Marketing Costs - Per Head Charges | B38: $/Head | E38: 1 | G38: ADG
A39: Number Marketed (Net of Death Loss) | B39: Head | D39: 1 | E39: =(100-D39)*0.01*E7 -> 99 | F39: =((E34*E39)-(E28*E29)) -> 26278.2675 | G39: =IF(E39<=0,"Undefined",(F39/(E27*E39))) -> 1.589443386
A40: Net Payweight Sales Revenue Per Head | B40: $/Head | E40: =((E36*E34*0.01)-E38-E37) -> 874.9319695
A41: Net Payweight Sales Revenue Value Per Cwt. | B41: $/Cwt. | E41: =(E40/E34)*100 -> 121.5212827
A42: Total Sales Value (Based on Head Marketed) | B42: $ | E42: =(E40*E39) -> 86618.26498 | F42: Gain / Hd. | G42: =F39/E28 -> 262.782675
E44: Financial | G44: Economic*
A45: Total Projected Expenses | F45: Rate of Interest | K45: Annualized
A46: Borrowed or Opportunity Cost of Equity Capital | B46: % Borrowed | D46: 30 | E46: % Rate | F46: 10 | G46: % | K46: Interest Rate
A47: Opportunity Cost of Equity Capital If Invested | B47: $ | E47: Total | G47: =K53 -> 3345.21589 | K47: =($F$46*($E$27/365)) -> 4.575342466 | L47: %
A48: Cash Interest Cost | B48: $/Hd. | D48: =(E48/E28) -> 10.03564767 | E48: =(D46*G47*0.01) -> 1003.564767 | K48: Economic Interest Cost
C49: Units
A50: Cost of Cattle | C50: =E7 -> 100 | D50: =(E29*E30)*0.01 -> 621 | E50: =C50*D50 -> 62100 | G50: =E50 -> 62100 | K50: =$E$50*(($E$27/365)*$F$46*0.01) -> 2841.287671 | L50: Cattle | N50: =K50*$D$46*0.01 -> 852.3863014
A51: Cost of Nutrition, Health and Other Costs | D51: $/Unit | K51: =((SUM($E$52:$E$57)*0.5*(($E$27/365)*$F$46*0.01))) -> 503.9282192 | L51: Feed | N51: =K51*$D$46*0.01 -> 151.1784658
A52: Cost Based on Income If Leased | B52: Lb. Of Gain | C52: =G42 -> 262.782675 | D52: =(E52/(C52*E28)) -> 0.5338251466 | E52: =C19 -> 14028 | G52: =E52 -> 14028
A53: Processing and Health | B53: $/Hd. | C53: 1 | D53: 10 | E53: =D53*$E$28 -> 1000 | G53: 1000 | K53: =(K51+K50) -> 3345.21589 | L53: Total Capital Use | N53: =(N51+N50) -> 1003.564767
A54: Extra Feed | B54: $/Hd. | C54: 1 | D54: 25 | E54: =D54*$E$28 -> 2500 | G54: =E54 -> 2500
A55: Other | B55: $/Hd. | C55: 1 | D55: 25 | E55: =D55*$E$28 -> 2500 | G55: 2500
A56: Management Cost or Return | B56: % of Gross | C56: 0 | D56: =(E40*C56*0.01)*(E27/365) -> 0 | E56: =D56*$E$28 -> 0 | G56: 0
A57: Target Net Margin Per Head Objective | B57: $/Hd. | C57: 1 | D57: 20 | E57: =D57*$E$28 -> 2000 | G57: 2000
A58: Total Specified Added Costs (Marginal Cost) | E58: =SUM(E48:E57) -> 85131.56477 | G58: =SUM(G47:G57) -> 87473.21589
A60: Cost Per Head | B60: $/Hd. | E60: =(E58/$E$39) -> 859.9147956 | G60: =(G58/$E$39) -> 883.5678373
A61: Cost of Net Payweight Gain | B61: $/Cwt. | E61: =IF(F39<=0,"Undefined",(E58-E50)/(F39*0.01)) -> 87.6449133 | G61: =IF(F39<=0,"Undefined",((G58-G50)/(F39*0.01))) -> 96.55589316
A62: Financial and Economic Advantage of Cattle Ownership & Margins** | E62: Financial | G62: Economic | K62: Financial Performance
A63: Net Income (Added Revenue - Added Cost) | D63: $ | E63: =E42-E58 -> 1486.70021 | G63: =(E42-G58) -> -854.9509129 | K63: =(K65/K74) -> 1.109288722 | L63: Financial Leverage Situation Index or ROE/ROA
K64: =(100-D46) -> 70 | L64: Percent Equity
A65: Marketing Margin | D65: $/Head | E65: =B82 -> -74.90326029 | K65: =(K66/K67)*100 -> 19.76079544 | L65: Return on Equity %
A66: Grazing or Feeding Margin | D66: $/Head | E66: =B84 -> 89.92043414 | K66: =E63+E57 -> 3486.70021 | L66: Return to Equity = Net + Target
A67: Net Margin Based on Number of Head Out | D67: $/Head | E67: =E63/E39 -> 15.01717384 | G67: =(G63/$E$39) -> -8.635867808 | K67: =IF(D46=100,(((($E58-E48)*0.5+E22)*1)*($E27/365)),(((($E$58-$E$48)*0.5+$E$22)*(100-D46)*0.01)*($E$27/365))) -> 17644.5337 | L67: Equity Investment
A68: - | D68: - | E68: - | G68: -
A69: Price Necessary to Achieve Target Net Margin Objective | D69: $/Cwt. | E69: =(+E58+$E$38*$E$39)/($E$34*$E$39*0.01)/(1-($D$37*0.01)) -> 123.2725832 | G69: =($E$22+G58+$E$38*$E$39)/($E$34*$E$39*0.01)/(1-($D$37*0.01)) -> 145.502362
K70: =(E73/E72) -> 274.9641118 | L70: ROE/ROA
F71: Target
A72: Annualized Return on Assets - ROA - (Including Net Margin Objective) % | E72: =IF($E$26=0,0,(($E$48+$E$57+$E$63)/((($E$58-$E$48)*0.5+$E$22)*($E$26/365)))*100) -> 0.07186681677 | F72: =IF(E26=0,0,((($K$53+$G$57)/((($G$58-G48)*0.5+$E$22)*($E$26/365)))*100)) -> 0.08302953117 | K72: =IF($E$27=0,0,((($E$58-$E$48)*0.5+$E$22)*($E$27/365))) -> 25206.47671 | L72: Total Assets
A73: Annualized Return on Equity - ROE - (Including Net Margin Objective) % | E73: =K65 -> 19.76079544 | K73: =(E63+E57+E48) -> 4490.264977 | L73: Return to Assets = Net + Target Margin + Cash Interest
A74: - | K74: =(K73/K72)*100 -> 17.81393341 | L74: Return on Assets %
A75: *Economic costs include an opportunity cost for capital invested in cattle on feed and other cost of gain adjusted for the time
A76: on feed. Ensure costs are full costs (don't include interest to prevent double counting; do include business overhead).
A77: **Based on net market weight and net value if sold at weaning versus the later sale.
A80: Summary Margin Analysis* | B80: $/Head
A82: Marketing Margin | B82: =((E28*E29*0.01)*(E41-E30)/E39) -> -74.90326029
A84: Feeding Margin | B84: =((E41-B97)*B95*0.01)/E39 -> 89.92043414
A86: Net Margin | B86: =(B82+B84) -> 15.01717384
B89: Weight
A91: Total Purchase | B91: =E28*E29 -> 45000
A93: Total Sales Based on Head Outs | B93: =E39*E34 -> 71278.2675
A95: Total Gain Based on Head Outs | B95: =B93-B91 -> 26278.2675
A97: Financial Cost of Gain Including Net Margin $/Cwt. | B97: =((E58-E50)/B95)*100 -> 87.6449133

Sheet Margin and Slide
A1: Summary Margin Analysis
A4: =SellorKeep!B7 -> Head
C5: $/Head
A6: Marketing Margin | C6: =SellorKeep!B82 -> -74.90326029
A8: Grazing or Feeding Margin | C8: =SellorKeep!B84 -> 89.92043414
A10: Net Margin | C10: =SellorKeep!B86 -> 15.01717384
A13: Price Slide & Other Premium or Discount Calculator
A14: Dates | C14: =SellorKeep!E11 -> 1901-03-25 | D14: =SellorKeep!E25 -> 2012-11-15
A16: Actual Weight Used In Slide Calculation | B16: Lb./Head | C16: =SellorKeep!E29 -> 450 | D16: =SellorKeep!E34 -> 719.9825
A18: Cattle Price Slide Calculator-------------------
A19: Base Price Before Adjusting for Weight Slide | B19: $/Cwt. | C19: 138 | D19: 125
A20: Base Weight for Calculating Slide | B20: Lb./Head | C20: 500 | D20: 800
A21: Tolerance Above Base Weight | B21: Lb./Head | C21: 50 | D21: 50
A22: Tolerance Below Base Weight | B22: Lb./Head | C22: 50 | D22: 50
A23: Price Slide | B23: $/Cwt. | C23: 1 | D23: 1 | G23: Calculation of Discounts or Premium
A24: Price Slide Discount (-) or Premium (+) | B24: $/Cwt. | C24: =G26 -> 0 | D24: =G32 -> 0.800175 | G24: =IF((C16>(C20+C21)),(-C23*0.01*(C16-C20)),0) -> 0 | H24: Heavy
G25: =IF((C16<C20-C22),(C23*0.01*(C20-C16)),0) -> 0 | H25: Light
A26: Market Basis Adjustment If Applicable | B26: $/Cwt. | C26: 0 | D26: 0 | G26: =(G24+G25) -> 0 | H26: Slide Discount 0r Premium
A28: Quality Discounts (-), Premiums (+)
A29: Muscling | B29: $/Cwt. | C29: 0 | D29: 0 | G29: Calculation of Discounts or Premium
A30: Frame | B30: $/Cwt. | C30: 0 | D30: 0 | G30: =IF((D16>(D20+D21)),(-D23*0.01*(D16-D20)),0) -> 0 | H30: Heavy
A31: Fill | B31: $/Cwt. | C31: 0 | D31: 0 | G31: =IF((D16<D20-D22),(D23*0.01*(D20-D16)),0) -> 0.800175 | H31: Light
A32: Breed | B32: $/Cwt. | C32: 0 | D32: 0 | G32: =(G30+G31) -> 0.800175 | H32: Slide Discount 0r Premium
A33: Feed Yard or Market Premium | B33: $/Cwt. | C33: 0 | D33: 0
A34: Total Quality Discounts (-), Premiums (+) | B34: $/Cwt. | C34: =SUM(C29:C33) -> 0 | D34: =SUM(D29:D33) -> 0
A36: Gross Cattle Price After Discount or Premium | B36: $/Cwt. | C36: =(C19+C26+C24+C34) -> 138 | D36: =(D19+D26+D24+D34) -> 125.800175
A39: Summary of Prices | C39: Net Price | D39: Weight | E39: Net Value
C40: $/Cwt. | D40: Lb./ Head | E40: $/Head
A41: Weaning Weight | D41: =SellorKeep!E13 -> 0
D43: Net Mkt. Wt.
A44: At Weaning
A45: Net Payweight Sales if Sold | C45: =SellorKeep!E21 -> 130.28 | D45: =SellorKeep!E15 -> 0 | E45: =(C45*D45*0.01) -> 0
A47: After Keeping Based on Head Out
A48: Net Payweight Sales - Includes Market Cost Adjustments | C48: =SellorKeep!E41 -> 121.5212827 | D48: =SellorKeep!E34 -> 719.9825 | E48: =(C48*D48*0.01) -> 874.9319695
A50: ----------------------------------------- | B50: $/Head
A51: Price Necessary to Achieve Target Per Head of | B51: =SellorKeep!D57 -> 20
A52: Financial Target Net Margin Objective | C52: =SellorKeep!E69 -> 123.2725832 | D52: =SellorKeep!E34 -> 719.9825 | E52: =(C52*D52*0.01) -> 887.5410264
A53: Economic Target Net Margin Objective | C53: =SellorKeep!G69 -> 145.502362 | D53: =SellorKeep!E34 -> 719.9825 | E53: =(C53*D53*0.01) -> 1047.591543

Sheet SensitivityAnalysis
A1: Cattle In-Price and Cost Sensitivity Analysis
A4: Cost of Gain, In-Price of Cattle and Sales Price Necessary to Reach Targeted Net Margin
A6: =SellorKeep!A57 -> Target Net Margin Per Head Objective | B6: $/Head | D6: =SellorKeep!D57 -> 20
A7: Starting Pay Weight (Lb/Head) | B7: =SellorKeep!E13 -> 0
A8: Projected Net Market Wt. (Lb/Head) | B8: =SellorKeep!E34 -> 719.9825 | J8: =SellorKeep!D46 -> 30 | K8: % Borrowed | P8: Cattle | R8: Total Cash
A9: Projected Net Gain (Lb/Head) | B9: =SellorKeep!G42 -> 262.782675 | J9: =(SellorKeep!$F$46*(SellorKeep!$E$27/365)) -> 4.575342466 | K9: Annualized Interest Rate
D10: Sales Price Necessary For Cattle Per Cwt. For | J10: Economic Interest Cost | M10: Cash Cost | P10: =B22 -> 136 | Q10: =($P10*SellorKeep!$E$28*SellorKeep!$E$29*0.01)*((SellorKeep!$E$27/365)*SellorKeep!$F$46*0.01) -> 2800.109589 | R10: =($Q10*SellorKeep!$D$46*0.01)+$M$11 -> 991.2113425
A11: Interval of Change For Analysis Table | D11: Different In-Price, Cost of Gain and Cattle Out-Prices* | J11: =((SUM(SellorKeep!$E$52:$E$55)*0.5*((SellorKeep!$E$27/365)*SellorKeep!$F$46*0.01))) -> 458.1747945 | K11: Feed & Other Costs | M11: =(SellorKeep!$K$51*SellorKeep!$D$46*0.01) -> 151.1784658 | P11: =B23 -> 137 | Q11: =($P11*SellorKeep!$E$28*SellorKeep!$E$29*0.01)*((SellorKeep!$E$27/365)*SellorKeep!$F$46*0.01) -> 2820.69863 | R11: =($Q11*SellorKeep!$D$46*0.01)+$M$11 -> 997.3880548
B12: Dol./Cwt. | P12: =B24 -> 138 | Q12: =($P12*SellorKeep!$E$28*SellorKeep!$E$29*0.01)*((SellorKeep!$E$27/365)*SellorKeep!$F$46*0.01) -> 2841.287671 | R12: =($Q12*SellorKeep!$D$46*0.01)+$M$11 -> 1003.564767
A13: Total Cost of Gain | B13: 2 | D13: Change and Associated Calculated Values | J13: =(SellorKeep!$E$28*SellorKeep!$E$29*SellorKeep!$E$30*0.01)*((SellorKeep!$E$27/365)*SellorKeep!$F$46*0.01) -> 2841.287671 | K13: Cattle | M13: =(SellorKeep!K50*SellorKeep!$D$46*0.01) -> 852.3863014 | P13: =B25 -> 139 | Q13: =($P13*SellorKeep!$E$28*SellorKeep!$E$29*0.01)*((SellorKeep!$E$27/365)*SellorKeep!$F$46*0.01) -> 2861.876712 | R13: =($Q13*SellorKeep!$D$46*0.01)+$M$11 -> 1009.741479
A14: Cattle In-Price | B14: 1 | D14: - | E14: - | F14: - | G14: - | H14: - | P14: =B26 -> 140 | Q14: =($P14*SellorKeep!$E$28*SellorKeep!$E$29*0.01)*((SellorKeep!$E$27/365)*SellorKeep!$F$46*0.01) -> 2882.465753 | R14: =($Q14*SellorKeep!$D$46*0.01)+$M$11 -> 1015.918192
D15: Decrease | F15: Input | G15: Increase | J15: =(L18+J13) -> 3299.522582 | K15: Total Interest | M15: =(M11+M13) -> 1003.564767
A16: Non-Cattle Costs With Cash Interest | B16: $/Head | F16: =SellorKeep!E60+SellorKeep!E38 -> 860.9147956 | K16: Cost of Gain | M16: Added | N16: Net Added | O16: Total
A17: Change in Cost of Gain | B17: Dol./Cwt. | D17: =B13*2*-1 -> -4 | E17: =B13*-1 -> -2 | G17: =B13*1 -> 2 | H17: =B13*2 -> 4 | K17: Change | L17: Interest | M17: Investment | N17: Interest | O17: Added
A18: Calculated Cost of Gain | B18: Dol./Cwt. | D18: =($F$18+D17) -> 83.6449133 | E18: =($F$18+E17) -> 85.6449133 | F18: =SellorKeep!E61 -> 87.6449133 | G18: =($F$18+G17) -> 89.6449133 | H18: =($F$18+H17) -> 91.6449133 | K18: =G17 -> 2 | L18: =((SUM(SellorKeep!$E$52:$E$55)+M18)*0.5*((SellorKeep!$E$27/365)*SellorKeep!$F$46*0.01)) -> 458.2349106 | M18: =($B$9*0.01*$B$13*0.5) -> 2.62782675 | N18: =L18-$J$11 -> 0.06011603661 | O18: =(($B$9*B13)+N18) -> 525.625466
D20: Necessary Sales Price per Cwt. for Cattle Out | K20: =H17 -> 4 | L20: =((SUM(SellorKeep!$E$52:$E$55)+M20)*0.5*((SellorKeep!$E$27/365)*SellorKeep!$F$46*0.01)) -> 458.2950266 | M20: =($B$9*0.01*$H$17*0.5) -> 5.2556535 | N20: =L20-$J$11 -> 0.1202320732 | O20: =((B9*H17)+N20) -> 1051.250932
B21: Price | D21: - | E21: - | F21: - | G21: - | H21: -
B22: =B24-2*B14 -> 136 | D22: =($B22*SellorKeep!$E$28*SellorKeep!$E$29*0.01+SUM(SellorKeep!$E$52:$E$57)+$R10+$O$24+SellorKeep!$E$38*SellorKeep!$E$39)/(SellorKeep!$E$34*SellorKeep!$E$39*0.01)/(1-(SellorKeep!$D$37*0.01)) -> 120.4325389 | E22: =($B22*SellorKeep!$E$28*SellorKeep!$E$29*0.01+SUM(SellorKeep!$E$52:$E$57)+$R10+$O$22+SellorKeep!$E$38*SellorKeep!$E$39)/(SellorKeep!$E$34*SellorKeep!$E$39*0.01)/(1-(SellorKeep!$D$37*0.01)) -> 121.1927733 | F22: =($B22*SellorKeep!$E$28*SellorKeep!$E$29*0.01+SUM(SellorKeep!$E$52:$E$57)+$R10+SellorKeep!$E$38*SellorKeep!$E$39)/(SellorKeep!$E$34*SellorKeep!$E$39*0.01)/(1-(SellorKeep!$D$37*0.01)) -> 121.9530077 | G22: =($B22*SellorKeep!$E$28*SellorKeep!$E$29*0.01+SUM(SellorKeep!$E$52:$E$57)+$R10+$O$18+SellorKeep!$E$38*SellorKeep!$E$39)/(SellorKeep!$E$34*SellorKeep!$E$39*0.01)/(1-(SellorKeep!$D$37*0.01)) -> 122.7132422 | H22: =($B22*SellorKeep!$E$28*SellorKeep!$E$29*0.01+SUM(SellorKeep!$E$52:$E$57)+$R10+$O$20+SellorKeep!$E$38*SellorKeep!$E$39)/(SellorKeep!$E$34*SellorKeep!$E$39*0.01)/(1-(SellorKeep!$D$37*0.01)) -> 123.4734766 | K22: =E17 -> -2 | L22: =((SUM(SellorKeep!$E$52:$E$55)+M22)*0.5*((SellorKeep!$E$27/365)*SellorKeep!$F$46*0.01)) -> 458.1146785 | M22: =($B$9*0.01*$E$17*0.5) -> -2.62782675 | N22: =L22-$J$11 -> -0.06011603661 | O22: =(($B$9*E17)+N22) -> -525.625466
B23: =(B24-B14) -> 137 | D23: =($B23*SellorKeep!$E$28*SellorKeep!$E$29*0.01+SUM(SellorKeep!$E$52:$E$57)+$R11+$O$24+SellorKeep!$E$38*SellorKeep!$E$39)/(SellorKeep!$E$34*SellorKeep!$E$39*0.01)/(1-(SellorKeep!$D$37*0.01)) -> 121.0923266 | E23: =($B23*SellorKeep!$E$28*SellorKeep!$E$29*0.01+SUM(SellorKeep!$E$52:$E$57)+$R11+$O$22+SellorKeep!$E$38*SellorKeep!$E$39)/(SellorKeep!$E$34*SellorKeep!$E$39*0.01)/(1-(SellorKeep!$D$37*0.01)) -> 121.8525611 | F23: =($B23*SellorKeep!$E$28*SellorKeep!$E$29*0.01+SUM(SellorKeep!$E$52:$E$57)+$R11+SellorKeep!$E$38*SellorKeep!$E$39)/(SellorKeep!$E$34*SellorKeep!$E$39*0.01)/(1-(SellorKeep!$D$37*0.01)) -> 122.6127955 | G23: =($B23*SellorKeep!$E$28*SellorKeep!$E$29*0.01+SUM(SellorKeep!$E$52:$E$57)+$R11+$O$18+SellorKeep!$E$38*SellorKeep!$E$39)/(SellorKeep!$E$34*SellorKeep!$E$39*0.01)/(1-(SellorKeep!$D$37*0.01)) -> 123.3730299 | H23: =($B23*SellorKeep!$E$28*SellorKeep!$E$29*0.01+SUM(SellorKeep!$E$52:$E$57)+$R11+$O$20+SellorKeep!$E$38*SellorKeep!$E$39)/(SellorKeep!$E$34*SellorKeep!$E$39*0.01)/(1-(SellorKeep!$D$37*0.01)) -> 124.1332643
A24: Cattle In-Price (Dol./Cwt)* ------------> | B24: =SellorKeep!E30 -> 138 | D24: =($B24*SellorKeep!$E$28*SellorKeep!$E$29*0.01+SUM(SellorKeep!$E$52:$E$57)+$R12+$O$24+SellorKeep!$E$38*SellorKeep!$E$39)/(SellorKeep!$E$34*SellorKeep!$E$39*0.01)/(1-(SellorKeep!$D$37*0.01)) -> 121.7521144 | E24: =($B24*SellorKeep!$E$28*SellorKeep!$E$29*0.01+SUM(SellorKeep!$E$52:$E$57)+$R12+$O$22+SellorKeep!$E$38*SellorKeep!$E$39)/(SellorKeep!$E$34*SellorKeep!$E$39*0.01)/(1-(SellorKeep!$D$37*0.01)) -> 122.5123488 | F24: =($B24*SellorKeep!$E$28*SellorKeep!$E$29*0.01+SUM(SellorKeep!$E$52:$E$57)+$R12+SellorKeep!$E$38*SellorKeep!$E$39)/(SellorKeep!$E$34*SellorKeep!$E$39*0.01)/(1-(SellorKeep!$D$37*0.01)) -> 123.2725832 | G24: =($B24*SellorKeep!$E$28*SellorKeep!$E$29*0.01+SUM(SellorKeep!$E$52:$E$57)+$R12+$O$18+SellorKeep!$E$38*SellorKeep!$E$39)/(SellorKeep!$E$34*SellorKeep!$E$39*0.01)/(1-(SellorKeep!$D$37*0.01)) -> 124.0328176 | H24: =($B24*SellorKeep!$E$28*SellorKeep!$E$29*0.01+SUM(SellorKeep!$E$52:$E$57)+$R12+$O$20+SellorKeep!$E$38*SellorKeep!$E$39)/(SellorKeep!$E$34*SellorKeep!$E$39*0.01)/(1-(SellorKeep!$D$37*0.01)) -> 124.7930521 | K24: =D17 -> -4 | L24: =((SUM(SellorKeep!$E$52:$E$55)+M24)*0.5*((SellorKeep!$E$27/365)*SellorKeep!$F$46*0.01)) -> 458.0545624 | M24: =($B$9*0.01*$D$17*0.5) -> -5.2556535 | N24: =L24-$J$11 -> -0.1202320732 | O24: =(($B$9*D17)+N24) -> -1051.250932
B25: =B24+B14 -> 139 | D25: =($B25*SellorKeep!$E$28*SellorKeep!$E$29*0.01+SUM(SellorKeep!$E$52:$E$57)+$R13+$O$24+SellorKeep!$E$38*SellorKeep!$E$39)/(SellorKeep!$E$34*SellorKeep!$E$39*0.01)/(1-(SellorKeep!$D$37*0.01)) -> 122.4119021 | E25: =($B25*SellorKeep!$E$28*SellorKeep!$E$29*0.01+SUM(SellorKeep!$E$52:$E$57)+$R13+$O$22+SellorKeep!$E$38*SellorKeep!$E$39)/(SellorKeep!$E$34*SellorKeep!$E$39*0.01)/(1-(SellorKeep!$D$37*0.01)) -> 123.1721365 | F25: =($B25*SellorKeep!$E$28*SellorKeep!$E$29*0.01+SUM(SellorKeep!$E$52:$E$57)+$R13+SellorKeep!$E$38*SellorKeep!$E$39)/(SellorKeep!$E$34*SellorKeep!$E$39*0.01)/(1-(SellorKeep!$D$37*0.01)) -> 123.932371 | G25: =($B25*SellorKeep!$E$28*SellorKeep!$E$29*0.01+SUM(SellorKeep!$E$52:$E$57)+$R13+$O$18+SellorKeep!$E$38*SellorKeep!$E$39)/(SellorKeep!$E$34*SellorKeep!$E$39*0.01)/(1-(SellorKeep!$D$37*0.01)) -> 124.6926054 | H25: =($B25*SellorKeep!$E$28*SellorKeep!$E$29*0.01+SUM(SellorKeep!$E$52:$E$57)+$R13+$O$20+SellorKeep!$E$38*SellorKeep!$E$39)/(SellorKeep!$E$34*SellorKeep!$E$39*0.01)/(1-(SellorKeep!$D$37*0.01)) -> 125.4528398
B26: =B24+2*B14 -> 140 | D26: =($B26*SellorKeep!$E$28*SellorKeep!$E$29*0.01+SUM(SellorKeep!$E$52:$E$57)+$R14+$O$24+SellorKeep!$E$38*SellorKeep!$E$39)/(SellorKeep!$E$34*SellorKeep!$E$39*0.01)/(1-(SellorKeep!$D$37*0.01)) -> 123.0716899 | E26: =($B26*SellorKeep!$E$28*SellorKeep!$E$29*0.01+SUM(SellorKeep!$E$52:$E$57)+$R14+$O$22+SellorKeep!$E$38*SellorKeep!$E$39)/(SellorKeep!$E$34*SellorKeep!$E$39*0.01)/(1-(SellorKeep!$D$37*0.01)) -> 123.8319243 | F26: =($B26*SellorKeep!$E$28*SellorKeep!$E$29*0.01+SUM(SellorKeep!$E$52:$E$57)+$R14+SellorKeep!$E$38*SellorKeep!$E$39)/(SellorKeep!$E$34*SellorKeep!$E$39*0.01)/(1-(SellorKeep!$D$37*0.01)) -> 124.5921587 | G26: =($B26*SellorKeep!$E$28*SellorKeep!$E$29*0.01+SUM(SellorKeep!$E$52:$E$57)+$R14+$O$18+SellorKeep!$E$38*SellorKeep!$E$39)/(SellorKeep!$E$34*SellorKeep!$E$39*0.01)/(1-(SellorKeep!$D$37*0.01)) -> 125.3523931 | H26: =($B26*SellorKeep!$E$28*SellorKeep!$E$29*0.01+SUM(SellorKeep!$E$52:$E$57)+$R14+$O$20+SellorKeep!$E$38*SellorKeep!$E$39)/(SellorKeep!$E$34*SellorKeep!$E$39*0.01)/(1-(SellorKeep!$D$37*0.01)) -> 126.1126275
A28: -
A29: *Price necessary to achieve targeted net margin objective
